[Event "95th Caplin Hastings Congress"]
[Site "Hastings"]
[Date "2019.12.31"]
[Round "4.22"]
[White "Terentiev, Sergei"]
[Black "Balaji, Aaravamudhan"]
[Result "1/2-1/2"]
[ECO "A29"]
[WhiteElo "2292"]
[BlackElo "2050"]
[Annotator "ChessBase"]
[PlyCount "95"]
[EventDate "2019.12.28"]
[EventType "swiss"]
[EventCountry "ENG"]
[SourceTitle "playchess.com"]
[Source "ChessBase"]
[SourceQuality "1"]
[TimeControl "40/6600+30:3000+30"]

1. c4 {[%emt 0:09:38]} e5 {[%emt 0:09:33]} 2. g3 {[%emt 0:00:13]} Nf6 {[%emt 0:00:04]} 3. Bg2 {[%emt 0:00:08]} d5 {[%emt 0:00:03]} 4. cxd5 {[%emt 0:00:08]} Nxd5 {[%emt 0:00:02]} 5. Nf3 {[%emt 0:00:12]} Nc6 {[%emt 0:00:04]} 6. O-O {[%emt 0:00:09]} Nb6 {[%emt 0:00:16]} 7. Nc3 {[%emt 0:03:05]} f6 {[%emt 0:00:28]} 8. d4 {[%emt 0:06:47]} Bg4 {[%emt 0:16:48]} 9. dxe5 {[%emt 0:01:50]} Qxd1 {[%emt 0:01:03]} 10. Rxd1 {[%emt 0:00:09]} fxe5 {[%emt 0:00:23]} 11. b3 {[%emt 0:14:58]} Bd6 {[%emt 0:05:37]} 12. Bb2 {[%emt 0:03:04]} Ke7 {[%emt 0:08:26]} 13. Ne4 {[%emt 0:02:44]} a5 {[%emt 0:06:08]} 14. h3 {[%emt 0:01:16]} Bxf3 {[%emt 0:01:45]} 15. Bxf3 {[%emt 0:03:47]} a4 {[%emt 0:02:00]} 16. Nxd6 {[%emt 0:01:18]} cxd6 {[%emt 0:00:01]} 17. b4 {[%emt 0:03:06]} Nc4 {[%emt 0:16:38]} 18. Bc3 {[%emt 0:01:25]} Rab8 {[%emt 0:12:08]} 19. b5 {[%emt 0:04:47]} Na7 {[%emt 0:03:01]} 20. Rab1 {[%emt 0:13:04]} Na3 {[%emt 0:05:24]} 21. Rb4 {[%emt 0:00:28]} N3xb5 {[%emt 0:02:56]} 22. Bd2 {[%emt 0:00:09]} Nd4 {[%emt 0:04:53]} 23. Bg5+ {[%emt 0:00:30]} Kf7 {[%emt 0:08:36]} 24. Rxa4 {[%emt 0:15:45]} Nab5 {[%emt 0:06:44]} 25. Rb4 {[%emt 0:02:07]} Nc3 {[%emt 0:01:12]} 26. Rd2 {[%emt 0:00:51]} Nxf3+ {[%emt 0:03:00]} 27. exf3 {[%emt 0:00:10]} d5 {[%emt 0:00:22]} 28. Rdb2 {[%emt 0:02:39]} b5 {[%emt 0:00:07]} 29. Bd2 {[%emt 0:00:12]} d4 {[%emt 0:00:24]} 30. f4 {[%emt 0:03:40]} e4 {[%emt 0:01:20]} 31. Bxc3 {[%emt 0:00:08]} dxc3 {[%emt 0:00:02]} 32. Rc2 {[%emt 0:00:08]} Rhc8 {[%emt 0:00:49]} 33. Rxe4 {[%emt 0:00:48]} b4 {[%emt 0:00:48]} 34. Kf1 {[%emt 0:02:39]} Rd8 {[%emt 0:01:18]} 35. Re1 {[%emt 0:05:13]} Ra8 {[%emt 0:02:03]} 36. Re4 {[%emt 0:02:10]} Ra4 {[%emt 0:01:13]} 37. Ree2 {[%emt 0:07:15]} Rd3 {[%emt 0:00:37]} 38. Re3 {[%emt 0:02:19]} Rd1+ {[%emt 0:01:20]} 39. Re1 {[%emt 0:00:24]} Rd2 {[%emt 0:00:54]} 40. Rxd2 {[%emt 0:01:58]} cxd2 {[%emt 0:00:01]} 41. Rb1 {[%emt 0:50:22]} Rxa2 {[%emt 0:50:43]} 42. Ke2 {[%emt 0:00:08]} d1=Q+ {[%emt 0:00:57]} 43. Kxd1 {[%emt 0:00:07]} Rxf2 {[%emt 0:00:04]} 44. Rxb4 {[%emt 0:00:05]} Rf3 {[%emt 0:00:57]} 45. g4 {[%emt 0:00:09]} Rxh3 {[%emt 0:00:00]} 46. Rb7+ {[%emt 0:00:00]} Kf6 {[%emt 0:00:00]} 47. Rb6+ {[%emt 0:00:00]} Kf7 {[%emt 0:00:00]} 48. Rb7+ {[%emt 0:00:00]} 1/2-1/2

[Event "95th Caplin Hastings Congress"]
[Site "Hastings"]
[Date "2019.12.31"]
[Round "4.24"]
[White "Merriman, John"]
[Black "Rice, Chris B"]
[Result "0-1"]
[ECO "E81"]
[WhiteElo "2219"]
[BlackElo "2027"]
[Annotator "ChessBase"]
[PlyCount "47"]
[EventDate "2019.12.28"]
[EventType "swiss"]
[EventCountry "ENG"]
[SourceTitle "playchess.com"]
[Source "ChessBase"]
[SourceQuality "1"]
[TimeControl "40/6600+30:3000+30"]

1. d4 {[%emt 0:09:34]} Nf6 {[%emt 0:09:47]} 2. c4 {[%emt 0:00:06]} g6 {[%emt 0:00:21]} 3. f3 {[%emt 0:00:30]} Bg7 {[%emt 0:00:25]} 4. e4 {[%emt 0:00:06]} d6 {[%emt 0:00:11]} 5. Nc3 {[%emt 0:00:09]} O-O {[%emt 0:00:17]} 6. Bg5 {[%emt 0:00:23]} a6 {[%emt 0:00:58]} 7. Qd2 {[%emt 0:03:47]} c6 {[%emt 0:00:17]} 8. h4 {[%emt 0:04:35]} b5 {[%emt 0:02:14]} 9. O-O-O {[%emt 0:11:48]} Qc7 {[%emt 0:27:43]} 10. Kb1 {[%emt 0:14:46]} Nbd7 {[%emt 0:00:00]} 11. Rc1 {[%emt 0:02:54]} Qb8 {[%emt 0:00:00]} 12. Bh6 {[%emt 0:11:33]} e5 {[%emt 0:02:39]} 13. Bxg7 {[%emt 0:03:11]} Kxg7 {[%emt 0:00:09]} 14. h5 {[%emt 0:08:08]} exd4 {[%emt 0:31:59]} 15. Qxd4 {[%emt 0:00:24]} Ne5 {[%emt 0:01:25]} 16. c5 {[%emt 0:08:05]} dxc5 {[%emt 0:02:45]} 17. Qxc5 {[%emt 0:00:07]} Nxh5 {[%emt 0:01:00]} 18. g4 {[%emt 0:10:09]} Ng3 {[%emt 0:11:10]} 19. Rxh7+ {[%emt 0:04:26]} Kxh7 {[%emt 0:00:23]} 20. Qxf8 {[%emt 0:00:04]} Nxf1 {[%emt 0:00:11]} 21. Nh3 {[%emt 0:09:54]} Nxf3 {[%emt 0:12:34]} 22. Qxf7+ {[%emt 0:00:12]} Kh8 {[%emt 0:00:06]} 23. Rxf1 {[%emt 0:05:33]} Bxg4 {[%emt 0:01:05]} 24. Nf4 {[%emt 0:01:27]} 0-1

[Event "95th Caplin Hastings Congress"]
[Site "Hastings"]
[Date "2019.12.31"]
[Round "4.25"]
[White "Lehaci, Miruna-Daria"]
[Black "Burrows, Nick"]
[Result "1-0"]
[ECO "C11"]
[WhiteElo "2214"]
[BlackElo "1952"]
[Annotator "ChessBase"]
[PlyCount "61"]
[EventDate "2019.12.28"]
[EventType "swiss"]
[EventCountry "ENG"]
[SourceTitle "playchess.com"]
[Source "ChessBase"]
[SourceQuality "1"]
[TimeControl "40/6600+30:3000+30"]

1. e4 {[%emt 0:09:32]} e6 {[%emt 0:09:40]} 2. d4 {[%emt 0:00:03]} d5 {[%emt 0:00:06]} 3. Nc3 {[%emt 0:00:03]} Nf6 {[%emt 0:00:26]} 4. e5 {[%emt 0:00:03]} Nfd7 {[%emt 0:00:04]} 5. f4 {[%emt 0:00:02]} c5 {[%emt 0:00:18]} 6. Nf3 {[%emt 0:00:04]} Nc6 {[%emt 0:00:14]} 7. Be3 {[%emt 0:00:04]} Be7 {[%emt 0:01:32]} 8. Be2 {[%emt 0:00:19]} O-O {[%emt 0:00:51]} 9. O-O {[%emt 0:00:07]} b6 {[%emt 0:00:58]} 10. Qd2 {[%emt 0:01:10]} f5 {[%emt 0:00:56]} 11. exf6 {[%emt 0:01:45]} Nxf6 {[%emt 0:00:08]} 12. Kh1 {[%emt 0:06:32]} Bb7 {[%emt 0:01:17]} 13. Rad1 {[%emt 0:02:06]} Ne4 {[%emt 0:03:40]} 14. Qe1 {[%emt 0:04:43]} Nb4 {[%emt 0:16:13]} 15. Rc1 {[%emt 0:04:20]} Rc8 {[%emt 0:08:11]} 16. a3 {[%emt 0:05:46]} Nxc3 {[%emt 0:04:26]} 17. bxc3 {[%emt 0:00:08]} Nc6 {[%emt 0:05:45]} 18. a4 {[%emt 0:05:19]} Qe8 {[%emt 0:11:30]} 19. Rb1 {[%emt 0:08:12]} Na5 {[%emt 0:08:56]} 20. Bb5 {[%emt 0:03:30]} Bc6 {[%emt 0:02:36]} 21. Ne5 {[%emt 0:10:09]} Bd6 {[%emt 0:04:44]} 22. Nxc6 {[%emt 0:00:00]} Nxc6 {[%emt 0:09:06]} 23. Qd2 {[%emt 0:01:39]} Qe7 {[%emt 0:01:44]} 24. Rbe1 {[%emt 0:06:57]} Qf6 {[%emt 0:11:19]} 25. f5 {[%emt 0:06:12]} cxd4 {[%emt 0:15:56]} 26. Bg5 {[%emt 0:00:41]} dxc3 {[%emt 0:00:00]} 27. Qe3 {[%emt 0:16:17]} Qd4 {[%emt 0:00:00]} 28. Qxe6+ {[%emt 0:00:56]} Kh8 {[%emt 0:00:00]} 29. Qxd6 {[%emt 0:00:46]} Nb4 {[%emt 0:00:00]} 30. Be3 {[%emt 0:01:42]} Qe4 {[%emt 0:00:00]} 31. Bf2 {[%emt 0:04:09]} 1-0

[Event "95th Caplin Hastings Congress"]
[Site "Hastings"]
[Date "2019.12.31"]
[Round "4.27"]
[White "Anuprita, Patil"]
[Black "Gallagher, Daniel GH"]
[Result "1/2-1/2"]
[ECO "A49"]
[WhiteElo "2025"]
[BlackElo "2171"]
[Annotator "ChessBase"]
[PlyCount "70"]
[EventDate "2019.12.28"]
[EventType "swiss"]
[EventCountry "ENG"]
[SourceTitle "playchess.com"]
[Source "ChessBase"]
[SourceQuality "1"]
[TimeControl "40/6600+30:3000+30"]

1. Nf3 {[%emt 0:10:04]} Nf6 {[%emt 0:09:48]} 2. g3 {[%emt 0:00:24]} g6 {[%emt 0:02:38]} 3. Bg2 {[%emt 0:00:56]} Bg7 {[%emt 0:00:09]} 4. O-O {[%emt 0:00:09]} O-O {[%emt 0:00:04]} 5. d4 {[%emt 0:00:04]} d6 {[%emt 0:01:12]} 6. b3 {[%emt 0:00:13]} e5 {[%emt 0:04:30]} 7. dxe5 {[%emt 0:04:30]} dxe5 {[%emt 0:01:43]} 8. Ba3 {[%emt 0:21:59]} Re8 {[%emt 0:15:25]} 9. Nc3 {[%emt 0:00:00]} Nc6 {[%emt 0:03:45]} 10. Qxd8 {[%emt 0:00:00]} Rxd8 {[%emt 0:05:26]} 11. Rad1 Bf5 {[%emt 0:10:24]} 12. Rxd8+ {[%emt 0:01:31]} Rxd8 {[%emt 0:18:39]} 13. Rc1 Bh6 {[%emt 0:01:17]} 14. e3 Ng4 {[%emt 0:03:54]} 15. Rd1 {[%emt 0:28:06]} Rxd1+ {[%emt 0:00:33]} 16. Nxd1 {[%emt 0:00:03]} Bxc2 {[%emt 0:02:12]} 17. Nc3 Nf6 {[%emt 0:03:14]} 18. Ne1 {[%emt 0:05:12]} Bf5 {[%emt 0:06:47]} 19. Bxc6 {[%emt 0:07:22]} bxc6 {[%emt 0:00:25]} 20. Nf3 {[%emt 0:00:54]} Nd7 {[%emt 0:00:00]} 21. e4 Bh3 {[%emt 0:03:07]} 22. Be7 {[%emt 0:03:21]} Bg4 {[%emt 0:00:00]} 23. Kg2 {[%emt 0:00:57]} Bf8 {[%emt 0:00:00]} 24. Bxf8 {[%emt 0:00:52]} Bxf3+ {[%emt 0:00:16]} 25. Kxf3 {[%emt 0:00:07]} Kxf8 {[%emt 0:00:03]} 26. Ke3 {[%emt 0:03:05]} Ke7 {[%emt 0:00:36]} 27. Na4 {[%emt 0:04:58]} Kd6 {[%emt 0:01:25]} 28. Nb2 {[%emt 0:00:21]} Nb6 {[%emt 0:02:38]} 29. h3 {[%emt 0:00:50]} h6 {[%emt 0:01:47]} 30. h4 {[%emt 0:01:48]} h5 {[%emt 0:07:46]} 31. f3 f6 {[%emt 0:00:00]} 32. f4 {[%emt 0:07:30]} exf4+ {[%emt 0:00:16]} 33. gxf4 {[%emt 0:00:24]} Nd7 {[%emt 0:03:50]} 34. Nc4+ {[%emt 0:05:41]} Ke6 {[%emt 0:00:53]} 35. Na5 {[%emt 0:01:38]} c5 {[%emt 0:01:35]} 1/2-1/2

[Event "95th Caplin Hastings Congress"]
[Site "Hastings"]
[Date "2019.12.31"]
[Round "4.29"]
[White "Salmons, Calum"]
[Black "Fishbein, Mitch"]
[Result "1/2-1/2"]
[ECO "C56"]
[WhiteElo "1796"]
[BlackElo "2151"]
[Annotator "ChessBase"]
[PlyCount "39"]
[EventDate "2019.12.28"]
[EventType "swiss"]
[EventCountry "ENG"]
[SourceTitle "playchess.com"]
[Source "ChessBase"]
[SourceQuality "1"]
[TimeControl "40/6600+30:3000+30"]

1. e4 {[%emt 0:09:32]} e5 {[%emt 0:09:46]} 2. Nf3 {[%emt 0:00:11]} Nc6 {[%emt 0:00:08]} 3. d4 {[%emt 0:00:42]} exd4 {[%emt 0:00:08]} 4. Bc4 {[%emt 0:00:04]} Nf6 {[%emt 0:00:14]} 5. O-O {[%emt 0:00:10]} Nxe4 {[%emt 0:00:36]} 6. Re1 {[%emt 0:00:12]} d5 {[%emt 0:00:06]} 7. Bxd5 {[%emt 0:00:05]} Qxd5 {[%emt 0:00:05]} 8. Nc3 {[%emt 0:00:07]} Qd7 {[%emt 0:00:13]} 9. Nxe4 {[%emt 0:03:59]} Be7 {[%emt 0:03:34]} 10. Bg5 {[%emt 0:01:15]} O-O {[%emt 0:00:22]} 11. Bxe7 {[%emt 0:01:42]} Qxe7 {[%emt 0:00:06]} 12. Nxd4 {[%emt 0:01:54]} Bd7 {[%emt 0:00:16]} 13. Nb3 {[%emt 0:21:08]} Be6 {[%emt 0:30:04]} 14. Nec5 {[%emt 0:11:02]} Nd8 {[%emt 0:14:16]} 15. Qf3 {[%emt 0:12:46]} c6 {[%emt 0:20:18]} 16. Nxe6 {[%emt 0:05:09]} Nxe6 {[%emt 0:01:02]} 17. Nd4 {[%emt 0:02:39]} Rad8 {[%emt 0:04:25]} 18. Nxe6 {[%emt 0:04:07]} fxe6 {[%emt 0:00:07]} 19. Qe3 {[%emt 0:01:15]} Qf6 {[%emt 0:07:00]} 20. c3 {[%emt 0:05:20]} 1/2-1/2

[Event "95th Caplin Hastings Congress"]
[Site "Hastings"]
[Date "2019.12.31"]
[Round "4.30"]
[White "Thatte, Nishchal"]
[Black "Brouwer, Dennis"]
[Result "0-1"]
[ECO "C45"]
[WhiteElo "1723"]
[BlackElo "2202"]
[Annotator "ChessBase"]
[PlyCount "56"]
[EventDate "2019.12.28"]
[EventType "swiss"]
[EventCountry "ENG"]
[SourceTitle "playchess.com"]
[Source "ChessBase"]
[SourceQuality "1"]
[TimeControl "40/6600+30:3000+30"]

1. e4 {[%emt 0:09:34]} e5 {[%emt 0:09:57]} 2. Nf3 {[%emt 0:00:05]} Nc6 {[%emt 0:00:25]} 3. d4 {[%emt 0:00:05]} exd4 {[%emt 0:00:17]} 4. Nxd4 {[%emt 0:00:06]} Nf6 {[%emt 0:00:21]} 5. Nxc6 {[%emt 0:00:08]} bxc6 {[%emt 0:00:16]} 6. e5 {[%emt 0:00:06]} Qe7 {[%emt 0:00:22]} 7. Qe2 {[%emt 0:00:07]} Nd5 {[%emt 0:00:18]} 8. c4 {[%emt 0:00:06]} Nb6 {[%emt 0:00:31]} 9. Nc3 {[%emt 0:00:18]} Bb7 {[%emt 0:05:10]} 10. b3 {[%emt 0:17:25]} g6 {[%emt 0:06:01]} 11. Ne4 {[%emt 0:01:35]} O-O-O {[%emt 0:03:22]} 12. Bg5 {[%emt 0:20:38]} Qxe5 {[%emt 0:04:05]} 13. Bf6 {[%emt 0:01:12]} Qa5+ {[%emt 0:01:14]} 14. Kd1 {[%emt 0:00:12]} Bh6 {[%emt 0:01:40]} 15. Bc3 {[%emt 0:06:23]} Qa3 {[%emt 0:05:48]} 16. Bb2 {[%emt 0:09:16]} Qf8 {[%emt 0:02:42]} 17. Bxh8 {[%emt 0:01:02]} Qxh8 {[%emt 0:03:04]} 18. Rb1 {[%emt 0:00:18]} d5 {[%emt 0:04:44]} 19. Ng5 {[%emt 0:07:00]} Qd4+ {[%emt 0:13:13]} 20. Kc2 {[%emt 0:00:15]} Bxg5 {[%emt 0:01:02]} 21. h4 {[%emt 0:02:45]} Bf6 {[%emt 0:02:10]} 22. Qd2 {[%emt 0:01:25]} Qxd2+ {[%emt 0:01:00]} 23. Kxd2 {[%emt 0:00:05]} dxc4+ {[%emt 0:00:19]} 24. Kc2 {[%emt 0:00:26]} c5 {[%emt 0:02:24]} 25. f3 {[%emt 0:00:16]} c3 {[%emt 0:13:49]} 26. Rd1 {[%emt 0:00:16]} Nd5 {[%emt 0:00:32]} 27. Re1 {[%emt 0:01:03]} Nb4+ {[%emt 0:02:56]} 28. Kb1 {[%emt 0:00:14]} Rd2 {[%emt 0:00:21]} 0-1

[Event "95th Caplin Hastings Congress"]
[Site "Hastings"]
[Date "2019.12.31"]
[Round "4.32"]
[White "Snape, Ian L"]
[Black "Persson, Andreas"]
[Result "0-1"]
[ECO "A18"]
[WhiteElo "2196"]
[BlackElo "2112"]
[Annotator "ChessBase"]
[PlyCount "76"]
[EventDate "2019.12.28"]
[EventType "swiss"]
[EventCountry "ENG"]
[SourceTitle "playchess.com"]
[Source "ChessBase"]
[SourceQuality "1"]
[TimeControl "40/6600+30:3000+30"]

1. c4 {[%emt 0:09:33]} Nf6 {[%emt 0:10:06]} 2. Nc3 {[%emt 0:00:05]} e6 {[%emt 0:00:43]} 3. e4 {[%emt 0:00:07]} d5 {[%emt 0:01:04]} 4. e5 {[%emt 0:00:05]} d4 {[%emt 0:00:32]} 5. exf6 {[%emt 0:00:06]} dxc3 {[%emt 0:00:10]} 6. bxc3 {[%emt 0:00:06]} Qxf6 {[%emt 0:00:17]} 7. d4 {[%emt 0:00:05]} b6 {[%emt 0:01:10]} 8. Nf3 {[%emt 0:01:06]} Bb7 {[%emt 0:00:05]} 9. Bg5 {[%emt 0:05:29]} Qf5 {[%emt 0:06:49]} 10. Bd3 {[%emt 0:12:58]} Qa5 {[%emt 0:00:09]} 11. O-O {[%emt 0:00:50]} h6 {[%emt 0:12:29]} 12. Bh4 {[%emt 0:04:46]} Bd6 {[%emt 0:06:47]} 13. d5 {[%emt 0:13:10]} O-O {[%emt 0:06:09]} 14. Nd4 {[%emt 0:03:09]} Nd7 {[%emt 0:05:15]} 15. Rb1 {[%emt 0:13:52]} Ne5 {[%emt 0:14:08]} 16. Rb5 {[%emt 0:01:07]} Qxa2 {[%emt 0:05:45]} 17. Bb1 {[%emt 0:03:30]} Qxc4 {[%emt 0:01:37]} 18. Qc2 {[%emt 0:01:20]} f5 {[%emt 0:05:26]} 19. Rd1 {[%emt 0:07:02]} Bxd5 {[%emt 0:02:40]} 20. Rxd5 {[%emt 0:01:37]} Qxd5 {[%emt 0:03:16]} 21. Bg3 {[%emt 0:21:10]} Rae8 {[%emt 0:05:14]} 22. f4 {[%emt 0:04:29]} Nc4 {[%emt 0:04:07]} 23. Ba2 {[%emt 0:04:29]} b5 {[%emt 0:01:53]} 24. Qe2 {[%emt 0:02:31]} Qe4 {[%emt 0:04:17]} 25. Qxe4 {[%emt 0:04:45]} fxe4 {[%emt 0:00:07]} 26. Nxb5 {[%emt 0:00:06]} Bc5+ {[%emt 0:01:13]} 27. Nd4 {[%emt 0:00:06]} Nd6 {[%emt 0:01:58]} 28. Kh1 {[%emt 0:01:47]} Bxd4 {[%emt 0:00:51]} 29. Rxd4 {[%emt 0:00:48]} Rf5 {[%emt 0:01:35]} 30. Ra4 {[%emt 0:00:49]} Rc5 {[%emt 0:02:06]} 31. Rxa7 {[%emt 0:00:57]} Rxc3 {[%emt 0:00:18]} 32. Kg1 {[%emt 0:00:04]} e3 {[%emt 0:02:04]} 33. Kf1 {[%emt 0:01:38]} Nf5 {[%emt 0:01:29]} 34. Ra4 {[%emt 0:00:29]} c5 {[%emt 0:01:54]} 35. Be1 {[%emt 0:01:20]} Rc2 {[%emt 0:01:35]} 36. g4 {[%emt 0:00:49]} Nd4 {[%emt 0:00:41]} 37. f5 {[%emt 0:00:20]} Rxh2 {[%emt 0:01:04]} 38. Bc3 {[%emt 0:00:51]} e2+ {[%emt 0:00:41]} 0-1

[Event "95th Caplin Hastings Congress"]
[Site "Hastings"]
[Date "2019.12.31"]
[Round "4.33"]
[White "Bin-Suhayl, Ieysaa"]
[Black "Norinkeviciute, Rasa"]
[Result "1-0"]
[ECO "E68"]
[WhiteElo "2187"]
[BlackElo "2018"]
[Annotator "ChessBase"]
[PlyCount "57"]
[EventDate "2019.12.28"]
[EventType "swiss"]
[EventCountry "ENG"]
[SourceTitle "playchess.com"]
[Source "ChessBase"]
[SourceQuality "1"]
[TimeControl "40/6600+30:3000+30"]

1. Nf3 {[%emt 0:09:41]} g6 {[%emt 0:00:33]} 2. c4 {[%emt 0:00:05]} Bg7 {[%emt 0:09:29]} 3. d4 {[%emt 0:00:06]} Nf6 {[%emt 0:00:06]} 4. g3 {[%emt 0:00:02]} O-O {[%emt 0:00:57]} 5. Bg2 {[%emt 0:00:02]} d6 {[%emt 0:00:05]} 6. O-O {[%emt 0:00:04]} Nbd7 {[%emt 0:00:18]} 7. Nc3 {[%emt 0:00:06]} Re8 {[%emt 0:00:05]} 8. e4 {[%emt 0:01:32]} e5 {[%emt 0:00:57]} 9. d5 {[%emt 0:00:00]} Nc5 {[%emt 0:05:24]} 10. Ne1 {[%emt 0:05:24]} a5 {[%emt 0:01:28]} 11. b3 {[%emt 0:26:01]} c6 {[%emt 0:07:25]} 12. Ba3 {[%emt 0:11:53]} Qb6 {[%emt 0:13:07]} 13. dxc6 {[%emt 0:12:54]} Qxc6 {[%emt 0:00:48]} 14. Nc2 {[%emt 0:07:03]} Bf8 {[%emt 0:05:48]} 15. Ne3 {[%emt 0:02:40]} Be6 {[%emt 0:09:12]} 16. Qc2 {[%emt 0:12:41]} Red8 {[%emt 0:07:08]} 17. f4 {[%emt 0:05:53]} Ne8 {[%emt 0:28:49]} 18. f5 {[%emt 0:03:51]} Bc8 {[%emt 0:01:54]} 19. Ncd5 {[%emt 0:00:53]} b5 {[%emt 0:02:25]} 20. fxg6 {[%emt 0:07:07]} hxg6 {[%emt 0:00:49]} 21. Rxf7 {[%emt 0:06:23]} Be6 {[%emt 0:12:32]} 22. Rf2 {[%emt 0:01:17]} Ra7 {[%emt 0:02:09]} 23. Raf1 {[%emt 0:00:13]} Bg7 {[%emt 0:01:12]} 24. cxb5 {[%emt 0:01:57]} Qxb5 {[%emt 0:00:20]} 25. Nc4 {[%emt 0:01:07]} Na6 {[%emt 0:04:13]} 26. Qd2 {[%emt 0:00:27]} Qd7 {[%emt 0:05:14]} 27. Qg5 {[%emt 0:00:58]} Rb8 {[%emt 0:00:21]} 28. Qxg6 {[%emt 0:00:42]} Nb4 {[%emt 0:00:28]} 29. Rf8# {[%emt 0:00:09]} 1-0

[Event "95th Caplin Hastings Congress"]
[Site "Hastings"]
[Date "2019.12.31"]
[Round "4.34"]
[White "Anderson, John"]
[Black "McNally, Richard J E"]
[Result "1-0"]
[ECO "C68"]
[WhiteElo "2163"]
[BlackElo "1967"]
[Annotator "ChessBase"]
[PlyCount "101"]
[EventDate "2019.12.28"]
[EventType "swiss"]
[EventCountry "ENG"]
[SourceTitle "playchess.com"]
[Source "ChessBase"]
[SourceQuality "1"]
[TimeControl "40/6600+30:3000+30"]

1. e4 {[%emt 0:09:35]} e5 {[%emt 0:09:48]} 2. Nf3 {[%emt 0:00:09]} Nc6 {[%emt 0:00:35]} 3. Bb5 {[%emt 0:00:05]} a6 {[%emt 0:00:39]} 4. Ba4 {[%emt 0:00:17]} Nf6 {[%emt 0:00:23]} 5. O-O {[%emt 0:00:09]} Be7 {[%emt 0:00:25]} 6. Bxc6 {[%emt 0:01:19]} dxc6 {[%emt 0:00:24]} 7. Nc3 {[%emt 0:00:05]} Bg4 {[%emt 0:04:25]} 8. h3 {[%emt 0:00:21]} Bxf3 {[%emt 0:00:35]} 9. Qxf3 {[%emt 0:00:06]} Bc5 {[%emt 0:00:59]} 10. d3 {[%emt 0:02:09]} Qe7 {[%emt 0:02:00]} 11. Bg5 {[%emt 0:03:25]} O-O-O {[%emt 0:01:07]} 12. Ne2 {[%emt 0:01:49]} h6 {[%emt 0:00:41]} 13. Bxf6 {[%emt 0:00:16]} gxf6 {[%emt 0:02:55]} 14. Ng3 {[%emt 0:01:48]} Rdg8 {[%emt 0:01:13]} 15. Nf5 {[%emt 0:02:24]} Qf8 {[%emt 0:01:18]} 16. Kh2 {[%emt 0:03:00]} Rg6 {[%emt 0:01:55]} 17. a3 {[%emt 0:01:36]} Kb8 {[%emt 0:01:19]} 18. b4 {[%emt 0:00:45]} Ba7 {[%emt 0:01:39]} 19. Rab1 {[%emt 0:00:48]} Rhg8 {[%emt 0:04:48]} 20. g3 {[%emt 0:01:04]} Rg5 {[%emt 0:03:28]} 21. a4 {[%emt 0:01:42]} R8g6 {[%emt 0:01:41]} 22. b5 {[%emt 0:02:59]} cxb5 {[%emt 0:04:41]} 23. axb5 {[%emt 0:00:03]} a5 {[%emt 0:00:23]} 24. Nh4 {[%emt 0:03:50]} Rg8 {[%emt 0:02:54]} 25. Qxf6 {[%emt 0:01:19]} Qc5 {[%emt 0:00:44]} 26. Nf3 {[%emt 0:03:55]} Qxc2 {[%emt 0:23:37]} 27. Nxg5 {[%emt 0:00:26]} hxg5 {[%emt 0:00:18]} 28. Qxf7 {[%emt 0:04:28]} Rc8 {[%emt 0:02:04]} 29. Qb3 {[%emt 0:09:53]} Qe2 {[%emt 0:04:41]} 30. Qd1 {[%emt 0:02:31]} Qa2 {[%emt 0:00:09]} 31. Ra1 {[%emt 0:03:26]} Qb2 {[%emt 0:00:20]} 32. Qb1 {[%emt 0:04:54]} Qe2 {[%emt 0:07:46]} 33. Qa2 {[%emt 0:04:11]} Qxa2 {[%emt 0:02:58]} 34. Rxa2 {[%emt 0:00:01]} Bb6 {[%emt 0:00:16]} 35. Kg2 {[%emt 0:02:08]} Rd8 {[%emt 0:00:14]} 36. Rd1 {[%emt 0:00:51]} Rf8 {[%emt 0:01:59]} 37. Rh1 {[%emt 0:06:36]} Kc8 {[%emt 0:00:58]} 38. h4 {[%emt 0:01:34]} gxh4 {[%emt 0:02:57]} 39. Rxh4 {[%emt 0:01:33]} Bd4 {[%emt 0:01:42]} 40. f4 {[%emt 0:01:58]} b6 {[%emt 0:01:27]} 41. f5 {[%emt 0:50:39]} Kd7 {[%emt 0:50:36]} 42. Kf3 {[%emt 0:02:09]} Kd6 {[%emt 0:00:38]} 43. Rc2 {[%emt 0:00:35]} Bc5 {[%emt 0:00:48]} 44. g4 {[%emt 0:02:01]} a4 {[%emt 0:00:33]} 45. g5 {[%emt 0:00:07]} Rg8 {[%emt 0:01:31]} 46. Kg4 {[%emt 0:01:05]} a3 {[%emt 0:01:10]} 47. Rh6+ {[%emt 0:00:41]} Kd7 {[%emt 0:00:57]} 48. Rxc5 {[%emt 0:00:21]} bxc5 {[%emt 0:00:16]} 49. Ra6 {[%emt 0:00:03]} Rh8 {[%emt 0:02:24]} 50. Rxa3 {[%emt 0:00:20]} Rh1 {[%emt 0:01:02]} 51. f6 {[%emt 0:00:52]} 1-0

[Event "95th Caplin Hastings Congress"]
[Site "Hastings"]
[Date "2019.12.31"]
[Round "4.35"]
[White "Graham, David B"]
[Black "Miller, George"]
[Result "1/2-1/2"]
[ECO "B01"]
[WhiteElo "2152"]
[BlackElo "1845"]
[Annotator "ChessBase"]
[PlyCount "53"]
[EventDate "2019.12.28"]
[EventType "swiss"]
[EventCountry "ENG"]
[SourceTitle "playchess.com"]
[Source "ChessBase"]
[SourceQuality "1"]
[TimeControl "40/6600+30:3000+30"]

1. e4 {[%emt 0:09:31]} d5 {[%emt 0:09:43]} 2. exd5 {[%emt 0:00:05]} Nf6 {[%emt 0:00:06]} 3. d4 {[%emt 0:00:10]} Bg4 {[%emt 0:00:16]} 4. Be2 {[%emt 0:01:09]} Bxe2 {[%emt 0:00:08]} 5. Qxe2 {[%emt 0:00:25]} Qxd5 {[%emt 0:00:14]} 6. Nf3 {[%emt 0:00:22]} Nc6 {[%emt 0:00:28]} 7. Be3 {[%emt 0:03:06]} e6 {[%emt 0:02:30]} 8. O-O {[%emt 0:00:43]} O-O-O {[%emt 0:03:27]} 9. c4 {[%emt 0:00:44]} Qh5 {[%emt 0:00:29]} 10. Nc3 {[%emt 0:00:12]} Ng4 {[%emt 0:08:09]} 11. h3 {[%emt 0:05:03]} Nxe3 {[%emt 0:01:59]} 12. fxe3 {[%emt 0:07:57]} g5 {[%emt 0:07:26]} 13. Ne1 {[%emt 0:26:39]} Qg6 {[%emt 0:05:15]} 14. Nd3 {[%emt 0:04:14]} h5 {[%emt 0:04:42]} 15. d5 {[%emt 0:04:48]} Bg7 {[%emt 0:03:47]} 16. dxc6 {[%emt 0:01:35]} Rxd3 {[%emt 0:02:20]} 17. cxb7+ {[%emt 0:01:00]} Kb8 {[%emt 0:00:16]} 18. Rad1 {[%emt 0:08:11]} Rhd8 {[%emt 0:02:21]} 19. Rxd3 {[%emt 0:10:09]} Rxd3 {[%emt 0:00:08]} 20. Nb5 {[%emt 0:01:58]} a6 {[%emt 0:04:45]} 21. Nd4 {[%emt 0:02:53]} Bxd4 {[%emt 0:00:58]} 22. exd4 {[%emt 0:00:03]} Rxd4 {[%emt 0:00:49]} 23. c5 {[%emt 0:02:27]} Qd3 {[%emt 0:07:19]} 24. Qxh5 {[%emt 0:03:38]} Qe3+ {[%emt 0:00:29]} 25. Kh1 {[%emt 0:01:08]} Rf4 {[%emt 0:03:04]} 26. Rxf4 {[%emt 0:11:48]} Qc1+ {[%emt 0:00:46]} 27. Kh2 {[%emt 0:01:56]} 1/2-1/2